bitfinex/quotes_ETHUSD_20251125
["timestamp","ask_amount","ask_price","bid_price","bid_amount"]
[1764064954767,6.59256822,2891.7,2891.6,0.001]
[1764064956497,8.83691122,2891.7,2891.6,0.001]
[1764064956869,10.60255422,2891.7,2891.6,0.001]
[1764064957070,8.99909122,2891.7,2891.6,0.001]
[1764064958300,6.59256822,2891.7,2891.6,0.001]
[1764064959591,9.03152312,2891.7,2891.6,0.001]
[1764064959792,9.28939222,2891.7,2891.6,0.001]
[1764064959979,9.28939222,2891.7,2891.4,0.001]
[1764064959980,0.405504,2891.5,2891.4,0.001]
[1764064960179,0.405504,2891.3,2891.1,0.001]
[1764064960505,11.90029993,2891.2,2891.1,0.001]
[1764064960699,13.14496009,2891.2,2891.1,0.001]
[1764064960893,13.28360274,2891.2,2891.1,0.001]
[1764064961403,10.55878974,2891.2,2891.1,0.001]
[1764064963197,12.61363774,2891.2,2891.1,0.001]
[1764064963390,10.55878974,2891.2,2891.1,0.001]
[1764064963591,12.60941274,2891.2,2891.1,0.001]
[1764064963804,10.55878974,2891.2,2891.1,0.001]
[1764064964366,11.88395458,2891.2,2891.1,0.001]
[1764064964590,10.05915091,2891.2,2891.1,0.001]
[1764064964789,9.84015091,2891.2,2891.1,0.001]
[1764064965004,12.88070391,2891.2,2891.1,0.001]
[1764064965368,12.38180391,2891.2,2891.1,0.001]
[1764064965570,12.08180391,2891.2,2891.1,0.001]
[1764064965770,5.79707009,2891.2,2891.1,0.481]
[1764064966006,6.01607009,2891.2,2891.1,0.481]
[1764064966810,6.49467009,2891.2,2891.1,0.001]
[1764064966973,6.99357009,2891.2,2891.1,0.001]
[1764064968295,6.49387009,2891.2,2891.1,0.001]
[1764064969205,7.00612099,2891.2,2891.1,0.001]
[1764064969509,6.99277009,2891.2,2891.1,0.001]
[1764064970596,11.16962909,2891.2,2891.1,0.001]
[1764064970792,9.80329109,2891.2,2891.1,0.001]
[1764064971578,9.78224509,2891.2,2891.1,0.001]
[1764064972308,1.13109811,2891.1,2891.0,0.001]
[1764064972502,6.70270934,2891.1,2891.0,0.001]
[1764064972699,6.68935844,2891.1,2891.0,0.001]
[1764064973008,6.82800637,2891.1,2891.0,0.001]
[1764064973179,5.68860637,2891.1,2891.0,0.001]
[1764064973380,8.40409844,2891.1,2891.0,0.001]
[1764064973591,5.94675844,2891.1,2891.0,0.001]
[1764064974014,8.80548444,2891.1,2891.0,0.001]
[1764064975414,8.52631844,2891.1,2891.0,0.001]
[1764064976493,5.94675844,2891.1,2891.0,0.001]
[1764064976696,11.27006634,2891.1,2891.0,0.001]
[1764064976897,10.45403844,2891.1,2891.0,0.001]
[1764064977202,9.57631844,2891.1,2891.0,0.001]
[1764064977404,8.32921844,2891.1,2891.0,0.001]
[1764064977715,7.26916133,2891.1,2891.0,0.001]
[1764064978010,7.99475544,2891.1,2891.0,0.001]
[1764064978212,7.99675544,2891.1,2891.0,0.001]
[1764064978520,11.1045908,2891.1,2891.0,0.001]
[1764064978813,11.5826908,2891.1,2891.0,0.001]
[1764064979413,12.51517386,2891.1,2891.0,0.001]
[1764064979610,13.57161886,2891.1,2891.0,0.001]
[1764064979810,16.67945422,2891.1,2891.0,0.001]
[1764064980196,17.00327072,2891.1,2891.0,0.001]
[1764064980609,16.73027072,2891.1,2891.0,0.001]
[1764064981333,1.13109811,2890.5,2890.4,0.001]
[1764064981501,0.405504,2890.0,2889.6,0.001]
[1764064981704,0.4559,2889.6,2888.8,0.6573]
[1764064981930,4.23893347,2888.9,2888.8,0.1956]
[1764064982132,4.78174997,2888.9,2888.8,0.6631]
[1764064982436,4.45793347,2888.9,2888.8,1.1248]
[1764064982601,5.12103347,2888.9,2888.8,1.1248]
[1764064983836,8.58255861,2888.9,2888.8,1.1248]
[1764064984721,8.36355861,2888.9,2888.8,1.1248]
[1764064984925,5.25572325,2888.9,2888.8,1.1248]
[1764064985126,4.18711925,2888.9,2888.8,1.1248]
[1764064985334,0.219,2889.0,2888.8,1.1248]
[1764064985535,0.94459411,2889.0,2888.9,1.0292]
[1764064985953,4.40599944,2889.0,2888.9,1.0292]
[1764064986257,0.94459411,2889.0,2888.9,1.0292]
[1764064986454,4.40599944,2889.0,2888.9,1.0292]
[1764064987101,4.40599944,2889.0,2888.9,0.9292]
[1764064987306,0.94459411,2889.0,2888.9,1.0292]
[1764064987532,4.40599944,2889.0,2888.9,1.0292]
[1764064988032,4.18699944,2889.0,2888.9,1.0292]
[1764064988620,3.46128234,2889.2,2889.1,0.1]
[1764064989118,3.46128234,2889.2,2889.1,1.0292]
[1764064990001,8.05295039,2889.4,2889.2,0.1]
[1764064990306,8.05295039,2889.4,2889.2,0.5617]
[1764064990510,4.59202425,2889.4,2889.3,0.4675]
[1764064990928,4.59202425,2889.4,2889.3,0.9292]
[1764064991736,4.18652025,2889.4,2889.3,0.9292]
[1764064992037,3.46092614,2889.4,2889.3,0.9292]
[1764064992237,3.46012614,2889.4,2889.3,0.9292]
[1764064993142,3.46086091,2889.5,2889.4,0.1]
[1764064993316,3.46086091,2889.5,2889.4,1.0292]
[1764064993522,4.1863347,2889.6,2889.5,0.1]
[1764064993726,4.1863347,2889.6,2889.5,0.5617]
[1764064993927,4.50034478,2890.0,2889.5,0.5617]
[1764064993928,3.45996816,2890.2,2889.5,1.0292]
[1764064994127,7.13901867,2890.2,2890.0,0.1]
[1764064994333,4.40456227,2890.2,2890.1,0.6552]
[1764064994637,3.45996816,2890.2,2890.1,1.2169]
[1764064994838,3.45996816,2890.2,2890.1,1.1169]
[1764064995475,4.18556227,2890.2,2890.1,1.1169]
[1764064996656,4.18556227,2890.2,2890.1,1.2169]
[1764064996852,3.45907661,2891.0,2890.1,1.2169]
[1764064996853,6.9187394,2890.7,2890.1,1.1169]
[1764064997061,0.405504,2890.5,2890.3,0.1]
[1764064997422,0.405504,2890.5,2890.4,0.9292]
[1764064998060,0.407504,2890.5,2890.4,0.9292]
[1764064998239,0.002,2890.5,2890.4,0.9292]
[1764064998956,4.18720317,2890.5,2890.4,0.9292]
[1764065001052,4.48010317,2890.5,2890.3,0.1]
[1764065001256,4.48010317,2890.5,2889.8,0.465]
[1764065001257,1.31349811,2890.4,2889.8,0.465]
[1764065001558,0.0133509,2890.3,2889.9,0.565]
[1764065002861,0.0133509,2890.3,2889.7,0.565]
[1764065002862,0.405504,2890.2,2889.7,0.565]
[1764065003056,0.0133509,2890.1,2889.7,0.565]
[1764065003257,6.92041522,2890.0,2889.7,0.565]
[1764065003559,3.46020761,2890.0,2889.7,0.565]
[1764065003746,3.46020761,2890.0,2889.9,0.4909]
[1764065004146,3.46020761,2890.0,2889.9,0.9559]
[1764065005365,6.92029006,2890.1,2889.9,0.4909]
[1764065006367,6.92029006,2890.1,2889.6,0.6527]
[1764065006368,1.82249811,2890.0,2889.6,0.1877]
[1764065006937,1.82249811,2890.0,2889.7,0.465]
[1764065007267,2.47519811,2890.0,2889.6,0.1877]
[1764065007560,0.405504,2889.8,2889.6,0.1877]
[1764065007867,0.405504,2889.8,2889.7,0.4909]
[1764065008848,0.877904,2889.8,2889.4,0.7513]
[1764065009034,1.60349811,2889.8,2889.4,0.6513]
[1764065009234,0.0049,2889.5,2889.0,0.1]
[1764065009438,6.92209184,2889.3,2888.9,0.566]
[1764065009879,3.46104592,2889.3,2889.2,0.4909]
[1764065010778,3.68004592,2889.3,2889.2,0.9559]
[1764065011171,3.68004592,2889.3,2889.2,0.4909]
[1764065014080,7.61349184,2889.3,2888.9,0.001]
[1764065014276,3.68004592,2889.3,2889.2,0.4909]
[1764065015682,3.46104592,2889.3,2889.2,0.4909]
[1764065015870,3.46104592,2889.3,2889.2,0.9559]
[1764065015871,0.219,2889.3,2889.2,0.9559]
[1764065016176,0.2182,2889.3,2889.2,1.0559]
[1764065016580,0.219,2889.3,2889.2,1.0559]
[1764065017880,3.68004592,2889.3,2889.2,1.0559]
[1764065018660,4.15474592,2889.3,2888.9,0.001]
[1764065018872,3.10959366,2889.2,2888.9,0.001]
[1764065019059,3.10959366,2889.2,2888.9,0.466]
[1764065019264,3.10959366,2889.2,2889.1,0.4909]
[1764065019667,0.219,2889.2,2889.1,0.4909]
[1764065019872,7.32735628,2889.4,2889.1,1.0559]
[1764065020073,0.219,2889.2,2889.1,0.565]
[1764065020272,0.219,2889.2,2889.1,0.1]
[1764065020478,0.624504,2889.3,2889.1,0.5909]
[1764065020787,0.624504,2889.3,2889.2,0.465]
[1764065020990,0.624504,2889.3,2889.2,0.9559]
[1764065021359,0.219,2889.3,2889.2,0.9559]
[1764065021767,0.94459411,2889.3,2889.2,0.9559]
[1764065021970,4.40564003,2889.3,2889.2,0.4909]
[1764065022166,4.81114403,2889.3,2889.2,0.4909]
[1764065022464,8.74458995,2889.3,2888.9,0.001]
[1764065023193,0.405504,2889.2,2888.9,0.001]
[1764065023492,0.0133509,2889.1,2888.9,0.001]
[1764065023892,3.47463642,2889.1,2889.0,0.4909]
[1764065024387,3.46128552,2889.1,2889.0,0.4909]
[1764065024693,3.68028552,2889.1,2889.0,0.4909]
[1764065026000,3.69363642,2889.1,2889.0,0.4909]
[1764065026197,3.68028552,2889.1,2889.0,0.4909]
[1764065026698,7.62732194,2889.1,2888.9,0.001]
[1764065026903,0.4747,2889.0,2888.9,0.001]
[1764065027190,5.20809177,2889.0,2888.9,0.001]
[1764065027392,0.465,2889.2,2888.9,0.9569]
[1764065027577,0.219,2889.1,2888.9,0.466]
[1764065027772,3.68032338,2889.1,2889.0,0.465]
[1764065027987,3.68032338,2889.1,2889.0,0.9559]
[1764065029792,3.68032338,2889.1,2889.0,1.0559]
[1764065030399,3.46132338,2889.1,2889.0,1.0559]
[1764065031787,3.46132338,2889.1,2889.0,0.5909]
[1764065032474,3.46132338,2889.1,2889.0,0.5919]
[1764065033406,3.92617056,2889.2,2889.0,1.0799]
[1764065033575,3.68017056,2889.2,2889.1,1.1152]
[1764065034609,3.68016572,2889.2,2889.1,1.1152]
[1764065034904,3.46116572,2889.2,2889.1,1.1152]
[1764065035277,3.46116572,2889.2,2889.1,0.5272]
[1764065035698,3.46116572,2889.2,2889.1,0.4878]
[1764065036278,3.78555605,2889.2,2889.1,0.4878]
[1764065037072,3.78555605,2889.2,2889.1,0.9988]
[1764065037505,3.78555605,2889.2,2889.1,1.0988]
[1764065040301,3.78475605,2889.2,2889.1,1.0988]
[1764065041103,0.32439033,2889.2,2889.1,1.0988]
[1764065041481,4.18864875,2889.3,2889.2,0.1]
[1764065041680,4.51335089,2889.3,2889.2,1.061]
[1764065041891,3.78775678,2889.3,2889.2,1.061]
[1764065042202,3.78775678,2889.3,2889.2,0.5912]
[1764065042203,3.78774806,2889.3,2889.2,0.5912]
[1764065042587,3.78774806,2889.3,2889.2,1.061]
[1764065044713,4.51334217,2889.3,2889.2,0.5912]
[1764065045115,8.46318809,2889.3,2889.0,0.001]
[1764065045412,0.32960214,2889.2,2889.0,0.001]
[1764065045585,0.0049,2889.2,2889.0,0.001]
[1764065046302,0.484,2889.1,2889.0,0.001]
[1764065046689,4.74847754,2889.1,2889.0,0.001]
[1764065046883,4.00497754,2889.1,2889.0,0.5922]
[1764065047096,0.32469202,2889.1,2889.0,0.5922]
[1764065047299,0.72759411,2889.3,2889.2,0.1]
[1764065047499,1.05226145,2889.3,2889.2,0.7813]
[1764065047698,1.05226145,2889.3,2889.2,1.2511]
[1764065048111,0.72759411,2889.3,2889.2,1.2511]
[1764065048410,4.18864003,2889.3,2889.2,1.2511]
[1764065048604,0.72759411,2889.3,2889.2,1.2511]
[1764065049017,4.18864003,2889.3,2889.2,1.2511]
[1764065049591,4.51324956,2889.3,2889.2,1.2511]
[1764065049787,1.05220364,2889.3,2889.2,1.2511]
[1764065050184,0.72759411,2889.3,2889.2,1.2511]
[1764065051922,4.18864003,2889.3,2889.2,1.2511]
[1764065052726,4.51319058,2889.3,2889.2,1.2511]
[1764065053401,4.51317923,2889.3,2889.2,1.2511]
[1764065053720,4.18864003,2889.3,2889.2,1.2511]
[1764065054595,0.72759411,2889.3,2889.2,1.2511]
[1764065054915,0.002,2889.3,2889.2,1.2511]
[1764065058507,0.002,2889.3,2889.2,0.7813]
[1764065058908,0.002,2889.3,2889.2,1.2511]
[1764065061638,0.002,2889.3,2889.2,4.71226572]
[1764065061935,0.002,2889.3,2889.2,1.2511]
[1764065063731,0.002,2889.3,2889.2,0.7813]
[1764065064448,0.0012,2889.3,2889.2,0.7813]
[1764065064812,0.0012,2889.3,2889.2,1.1714]
[1764065065013,0.0012,2889.3,2889.2,1.2714]
[1764065066123,0.0012,2889.3,2889.2,0.7813]
[1764065066766,0.0012,2889.3,2889.2,0.6813]
[1764065066913,0.0012,2889.3,2889.2,1.2714]
[1764065067240,0.0012,2889.3,2889.2,0.7813]
[1764065067741,0.0012,2889.3,2889.2,0.6813]
[1764065068043,0.0012,2889.3,2889.2,0.7813]
[1764065068646,0.0012,2889.3,2889.2,0.5912]
[1764065072544,0.0012,2889.3,2889.2,0.1]
[1764065072733,0.48,2889.3,2889.2,0.1]
[1764065072930,0.48,2889.3,2889.2,0.5881]
[1764065072931,0.0012,2889.3,2889.2,0.5881]
[1764065076153,0.9548,2889.3,2889.2,0.1]
[1764065076360,0.48,2889.3,2889.2,0.1]
[1764065078664,0.0012,2889.3,2889.2,0.1]
[1764065078870,0.0012,2889.3,2889.2,0.5881]
[1764065079359,0.9548,2889.3,2889.2,0.1]
[1764065080168,1.27925062,2889.3,2889.1,0.101]
[1764065080371,0.4933,2889.2,2889.1,0.101]
[1764065080749,0.81772831,2889.2,2889.1,0.101]
[1764065082074,4.27889403,2889.2,2889.1,0.101]
[1764065082275,3.95446572,2889.2,2889.1,0.101]
[1764065084142,4.2787985,2889.2,2889.1,0.101]
[1764065084880,3.47966572,2889.2,2889.1,0.101]
[1764065085242,3.95446572,2889.2,2889.1,0.101]
[1764065085736,0.0012,2889.3,2889.2,0.1]
[1764065085940,3.46224592,2889.3,2889.2,0.5881]
[1764065086290,3.94104592,2889.3,2889.2,0.1]
[1764065086956,4.41584592,2889.3,2889.2,0.1]
[1764065088152,4.41504592,2889.3,2889.2,0.1]
[1764065088886,3.94024592,2889.3,2889.2,0.1]
[1764065089499,4.41504592,2889.3,2889.2,0.1]
[1764065090206,0.0004,2889.3,2889.2,0.5693]
[1764065090496,0.0004,2889.3,2889.2,0.9443]
[1764065090701,0.0004,2889.3,2889.2,1.07891165]
[1764065090867,0.0004,2889.3,2889.2,1.0443]
[1764065091469,0.0004,2889.3,2889.2,4.50546572]
[1764065091664,0.0004,2889.3,2889.2,1.0443]
[1764065096800,0.0004,2889.3,2889.2,0.5693]
[1764065097384,0.0004,2889.3,2889.2,1.0325]
[1764065098466,0.0004,2889.3,2889.2,0.5693]
[1764065098672,0.0004,2889.3,2889.2,1.0325]
[1764065100806,0.0016,2889.6,2889.5,0.1]
[1764065101513,0.0016,2889.6,2889.5,0.5728]
[1764065101877,0.0016,2889.6,2889.5,1.036]
[1764065102812,0.0016,2889.6,2889.5,0.5728]
[1764065102973,0.0016,2889.6,2889.5,1.036]
[1764065103732,0.0016,2889.6,2889.5,4.03360636]
[1764065103891,0.0016,2889.6,2889.5,4.53141442]
[1764065104225,0.0016,2889.6,2889.5,4.63541634]
[1764065104925,0.0016,2889.6,2889.5,4.17221634]
[1764065105090,0.0016,2889.6,2889.5,4.63541634]
[1764065105291,0.0016,2889.6,2889.5,4.6700244]
[1764065106026,0.0016,2889.6,2889.5,7.74392268]
[1764065107827,0.0016,2889.6,2889.5,8.46951679]
[1764065111444,0.002,2889.9,2889.7,4.230515]
[1764065111642,0.002,2890.1,2890.0,4.33960445]
[1764065111963,0.002,2890.5,2890.3,0.1]
[1764065112167,0.0012,2890.4,2890.3,0.7918]
[1764065112369,0.0012,2890.4,2890.3,1.255]
[1764065112958,0.0012,2890.4,2890.3,1.39357204]
[1764065113164,0.0012,2890.4,2890.3,0.93037204]
[1764065113361,0.0012,2890.4,2890.3,2.11916615]
[1764065113538,0.0012,2890.4,2890.3,2.15376463]
[1764065113946,0.0012,2890.4,2890.3,5.61361308]
[1764065114163,0.0012,2890.4,2890.3,8.72211942]
[1764065114368,0.0012,2890.4,2890.3,8.68752094]
[1764065126054,0.0012,2890.4,2890.3,12.51752094]
[1764065129696,0.0012,2890.4,2890.3,12.52832094]
[1764065130104,0.0012,2890.4,2890.3,8.69832094]
[1764065130305,0.002,2890.5,2890.4,5.34365711]
[1764065130472,0.002,2890.5,2890.4,2.21369539]
[1764065130667,0.002,2890.8,2890.6,0.1]
[1764065130972,0.002,2890.8,2890.6,3.68250634]
[1764065131185,0.002,2890.8,2890.6,4.15650634]
[1764065132568,0.002,2890.8,2890.6,7.61599571]
[1764065134720,0.002,2890.8,2890.6,4.03348937]
[1764065134919,0.4891,2890.7,2890.6,4.28508348]
[1764065135091,0.002,2890.7,2890.6,4.75908348]
[1764065136215,0.0012,2890.7,2890.6,4.75908348]
[1764065136593,0.0012,2890.7,2890.6,5.43498348]
[1764065136922,0.0012,2890.7,2890.6,4.96098348]
[1764065137123,0.4884,2890.7,2890.6,4.96098348]
[1764065137589,0.4884,2890.7,2890.6,5.54554007]
[1764065137919,0.4884,2890.7,2890.6,5.64554007]
[1764065139127,0.9806,2890.7,2890.6,5.64554007]
[1764065139793,0.4884,2890.7,2890.6,5.64554007]
[1764065140324,0.9806,2890.7,2890.6,4.96964007]
[1764065140623,0.9806,2890.7,2890.6,3.55948937]
[1764065141418,0.9806,2890.7,2890.6,0.1]
[1764065145774,0.9806,2890.7,2890.6,3.55948937]
[1764065147245,0.9806,2890.7,2890.6,0.1]
[1764065148955,0.9806,2890.7,2890.5,0.1]
[1764065149120,3.60080634,2890.6,2890.5,0.1]
[1764065149326,4.08790634,2890.6,2890.5,0.1]
[1764065149969,0.9794,2890.6,2890.5,0.1]
[1764065151222,4.43888937,2890.6,2890.5,0.1]
[1764065152384,0.9794,2890.6,2890.5,0.1]
[1764065152908,4.43888937,2890.6,2890.5,0.1]
[1764065153073,0.9794,2890.6,2890.5,0.1]
[1764065153719,4.43888937,2890.6,2890.5,0.1]
[1764065153923,0.9794,2890.6,2890.5,0.1]
[1764065157830,0.9794,2890.6,2890.5,0.101]
[1764065157976,0.9814,2890.6,2890.5,0.101]
[1764065160213,0.9806,2890.6,2890.5,0.101]
[1764065160805,0.9806,2890.6,2890.5,0.001]
[1764065161716,0.9806,2890.6,2890.5,0.101]
[1764065169135,1.386104,2890.6,2890.5,0.001]
[1764065169305,4.65908937,2890.6,2890.5,0.001]
[1764065169498,1.30471333,2890.6,2890.5,0.101]
[1764065169730,0.9806,2890.6,2890.5,0.101]
[1764065170104,4.44008937,2890.6,2890.5,0.101]
[1764065170731,0.9806,2890.6,2890.5,0.101]
[1764065172133,0.9806,2890.6,2890.5,0.001]
[1764065172134,4.76431108,2890.6,2890.5,0.001]
[1764065172832,4.98331108,2890.6,2890.5,0.001]
[1764065175610,4.98340229,2890.6,2890.5,0.001]
[1764065176575,1.52391292,2890.6,2890.5,0.001]
[1764065176737,4.98340229,2890.6,2890.5,0.001]
[1764065177062,1.52391292,2890.6,2890.5,0.001]
[1764065177557,4.98340229,2890.6,2890.5,0.101]
[1764065177937,0.81341292,2890.6,2890.5,0.001]
[1764065178159,0.81341292,2890.6,2890.5,0.101]
[1764065182355,1.30411292,2890.6,2890.5,0.101]
[1764065183676,0.81341292,2890.6,2890.5,0.101]
[1764065183879,0.32631292,2890.6,2890.5,0.101]
[1764065184270,4.73500229,2890.6,2890.5,0.101]
[1764065184862,1.27551292,2890.6,2890.5,0.101]
[1764065185872,4.73500229,2890.6,2890.5,0.101]
[1764065187131,1.27551292,2890.6,2890.5,0.101]
[1764065187386,0.0012,2890.6,2890.5,4.53240906]
[1764065188000,0.4549,2890.6,2890.5,3.56060906]
[1764065188287,0.4549,2890.6,2890.5,0.101]
[1764065188497,0.9512,2890.6,2890.5,0.101]
[1764065188671,4.41068937,2890.6,2890.5,0.101]
[1764065189478,0.9512,2890.6,2890.5,0.101]
[1764065190083,8.9733514,2890.6,2890.5,0.001]
[1764065190249,9.1923514,2890.6,2890.5,0.001]
[1764065190452,9.33099405,2890.6,2890.5,0.001]
[1764065196613,6.0852033,2890.6,2890.5,0.001]
[1764065198214,5.8662033,2890.6,2890.5,0.001]
[1764065198384,6.0852033,2890.6,2890.5,0.001]
[1764065202433,9.2057023,2890.6,2890.5,0.001]
[1764065202644,9.2057023,2890.6,2890.2,0.001]
[1764065202645,1.13109811,2890.3,2890.2,0.001]
[1764065202952,10.91964928,2890.3,2890.2,0.001]
[1764065203091,10.90629838,2890.3,2890.2,0.001]
[1764065203295,10.11156359,2890.3,2890.2,0.001]
[1764065203627,15.73640359,2890.3,2890.2,0.001]
[1764065204004,15.73640359,2890.3,2890.0,0.001]
[1764065204320,4.61658599,2890.1,2890.0,0.001]
[1764065204494,5.68763707,2890.1,2890.0,0.001]
[1764065204687,6.18393707,2890.1,2890.0,0.001]
[1764065204930,14.49709607,2890.1,2890.0,0.001]
[1764065205808,1.13109811,2890.0,2889.9,0.001]
[1764065205993,10.84631421,2889.8,2889.1,0.001]
[1764065206302,11.41933003,2889.8,2889.1,0.001]
[1764065206499,15.37607711,2889.8,2889.1,0.001]
[1764065206705,15.51477552,2889.8,2889.1,0.001]
[1764065208429,8.68690752,2889.8,2889.1,0.001]
[1764065208728,8.90590752,2889.8,2889.1,0.001]
[1764065210738,8.68690752,2889.8,2889.1,0.001]
[1764065211046,8.90590752,2889.8,2889.1,0.001]
[1764065212245,8.68690752,2889.8,2889.1,0.001]
[1764065212548,8.90925897,2889.8,2889.1,0.4919]
[1764065213845,8.90925897,2889.8,2889.1,0.001]
[1764065216019,8.90925897,2889.8,2889.6,0.001]
[1764065216223,8.91125897,2889.8,2889.6,0.001]
[1764065216650,5.58255942,2889.8,2889.6,0.001]
[1764065216849,5.30525942,2889.8,2889.6,0.001]
[1764065217250,5.77015942,2889.8,2889.6,0.001]
[1764065218757,5.63146101,2889.8,2889.6,0.001]
[1764065220157,5.41246101,2889.8,2889.6,0.001]
[1764065220353,5.63146101,2889.8,2889.6,0.001]
[1764065221327,5.64481191,2889.8,2889.6,0.001]
[1764065221657,5.63146101,2889.8,2889.6,0.001]
[1764065222060,5.16656101,2889.8,2889.6,0.001]
[1764065222262,4.91796101,2889.8,2889.6,0.001]
[1764065222557,0.002,2889.8,2889.7,1.0487]
[1764065222738,0.407504,2889.8,2889.7,0.4896]
[1764065223139,0.407504,2889.8,2889.7,1.0487]
[1764065223760,3.86795108,2889.8,2889.7,1.0487]
[1764065224662,8.16454474,2889.8,2889.7,0.001]
[1764065224890,8.952695,2889.8,2889.7,0.001]
[1764065226655,4.91679545,2889.8,2889.7,0.4896]
[1764065226863,5.13579545,2889.8,2889.7,0.5896]
[1764065227067,4.91679545,2889.8,2889.7,0.5896]
[1764065227268,5.13579545,2889.8,2889.7,0.5896]
[1764065227758,4.91679545,2889.8,2889.7,0.5896]
[1764065227988,5.13579545,2889.8,2889.7,1.0487]
[1764065228288,4.91679545,2889.8,2889.7,1.0487]
[1764065228498,5.13579545,2889.8,2889.7,1.0487]
[1764065229591,4.91679545,2889.8,2889.7,1.0487]
[1764065229780,5.13579545,2889.8,2889.7,1.0487]
[1764065230488,4.91679545,2889.8,2889.7,1.0487]
[1764065230687,0.002,2889.8,2889.7,1.0487]
[1764065232161,0.0012,2889.8,2889.7,1.0487]
[1764065233673,0.406704,2889.8,2889.7,0.4896]
[1764065234371,0.0012,2889.8,2889.7,0.9487]
[1764065234571,0.0012,2889.8,2889.7,1.0487]
[1764065238481,0.0012,2889.8,2889.7,0.5896]
[1764065240516,0.0012,2889.8,2889.7,1.0525]
[1764065242125,0.0012,2889.8,2889.7,0.5896]
[1764065242501,0.0012,2889.8,2889.7,0.4896]
[1764065244316,0.0012,2889.8,2889.7,0.9525]
[1764065244835,0.0012,2889.8,2889.7,0.4896]
[1764065245818,0.0012,2889.8,2889.7,0.9525]
[1764065246734,0.219,2889.9,2889.7,0.9525]
[1764065246912,0.94459411,2889.9,2889.8,0.4571]
[1764065247530,4.40480712,2890.0,2889.9,0.1]
[1764065247697,1.26866236,2890.0,2889.9,0.5571]
[1764065247900,1.04966236,2890.0,2889.9,0.5571]
[1764065248129,4.50986997,2890.0,2889.9,1.02]
[1764065248329,4.50986997,2890.0,2889.9,0.5571]
[1764065248536,1.04966236,2890.0,2889.9,1.02]
[1764065248837,1.46851726,2890.0,2889.9,1.02]
[1764065249037,4.92872487,2890.0,2889.9,0.5571]
[1764065249332,5.42852487,2890.0,2889.7,0.101]
[1764065249532,0.32406825,2889.9,2889.7,0.101]
[1764065250040,1.04966236,2889.9,2889.8,0.4571]
[1764065250420,1.05166236,2889.9,2889.8,0.4571]
[1764065250737,0.32606825,2889.9,2889.8,0.4571]
[1764065250923,0.32606825,2889.9,2889.8,0.92]
[1764065251108,0.32606825,2889.9,2889.8,1.02]
[1764065251730,1.05166236,2889.9,2889.8,0.5571]
[1764065253536,0.32606825,2889.9,2889.8,0.5571]
[1764065253834,0.32606825,2889.9,2889.8,1.02]
[1764065254028,1.05166236,2889.9,2889.8,1.02]
[1764065254740,1.05166236,2889.9,2889.8,0.5571]
[1764065254955,3.78639559,2889.9,2889.8,0.5571]
[1764065255253,4.5119897,2889.9,2889.8,0.5571]
[1764065255550,4.9854897,2889.9,2889.7,0.101]
[1764065255869,1.13309811,2889.9,2889.8,0.92]
[1764065256067,1.05201262,2889.9,2889.8,1.02]
[1764065256223,1.05121262,2889.9,2889.8,1.02]
[1764065256419,1.05121262,2889.9,2889.8,0.5571]
[1764065256854,4.51153996,2889.9,2889.8,0.5571]
[1764065257058,4.51153996,2889.9,2889.8,0.4571]
[1764065257372,4.98503996,2889.9,2889.7,0.101]
[1764065257657,1.67451662,2889.8,2889.7,0.001]
[1764065258033,1.67451662,2889.8,2889.7,0.4581]
[1764065258257,5.1349637,2889.8,2889.7,0.4581]
[1764065258626,5.13513019,2889.8,2889.7,0.4581]
[1764065259455,6.11488109,2889.8,2889.7,0.001]
[1764065260867,2.65443401,2889.8,2889.7,0.001]
[1764065261077,5.60863019,2889.8,2889.7,0.001]
[1764065261248,5.38963019,2889.8,2889.7,0.001]
[1764065262758,1.45568311,2889.8,2889.7,0.4581]
[1764065263258,5.40308109,2889.8,2889.7,0.001]
[1764065264445,5.38973019,2889.8,2889.7,0.001]
[1764065265261,5.40308109,2889.8,2889.7,0.001]
[1764065265451,5.38973019,2889.8,2889.7,0.001]
[1764065265963,5.40308109,2889.8,2889.7,0.001]
[1764065266479,5.89578109,2889.8,2889.7,0.001]
[1764065266635,5.88243019,2889.8,2889.7,0.001]
[1764065266950,5.38973019,2889.8,2889.7,0.001]
[1764065267331,1.45568311,2889.8,2889.7,0.4581]
[1764065267863,4.91613019,2889.8,2889.7,0.4581]
[1764065268071,1.45568311,2889.8,2889.7,0.4581]
[1764065268764,4.91613019,2889.8,2889.7,0.4581]
[1764065269466,5.89578109,2889.8,2889.7,0.001]
[1764065271091,1.45568311,2889.8,2889.7,0.4567]
[1764065271287,1.45568311,2889.8,2889.7,0.5567]
[1764065271288,4.91613019,2889.8,2889.7,0.5567]
[1764065272383,5.41918109,2889.8,2889.7,0.001]
[1764065272589,5.88098109,2889.8,2889.7,0.001]
[1764065278205,6.62840156,2889.8,2889.7,0.001]
[1764065279068,21.70763256,2889.8,2889.7,0.001]
[1764065279270,22.62800749,2889.8,2889.7,0.001]
[1764065279706,23.18754236,2889.8,2889.7,0.001]
[1764065280219,21.99542436,2889.8,2889.7,0.001]
[1764065280368,21.99462436,2889.8,2889.7,0.001]
[1764065280574,22.3043039,2889.8,2889.7,0.001]
[1764065280784,18.0707699,2889.8,2889.7,0.001]
[1764065280998,0.4833,2889.5,2889.2,0.001]
[1764065281201,1.68001124,2889.3,2889.2,0.001]
[1764065281375,1.81819958,2889.3,2889.2,0.001]
[1764065281574,4.96793458,2889.3,2889.2,0.001]
[1764065281802,5.17908548,2889.3,2889.2,0.001]